bitfinex-derivatives/quotes_BNBF0:USTF0_20250326
["timestamp","ask_amount","ask_price","bid_price","bid_amount"]
[1742986885831,0.833,632.11,631.17,0.26340831]
[1742986886231,0.27547446,632.08,631.17,0.26340831]
[1742986886731,0.27547446,632.08,631.22,1.18093591]
[1742986888526,0.27547446,632.08,631.23,0.26347558]
[1742986888731,0.833,632.11,631.23,0.26347558]
[1742986888927,0.833,632.11,631.32,1.18093591]
[1742986889131,0.27547991,632.07,631.32,1.18093591]
[1742986891733,0.833,632.11,631.32,1.18093591]
[1742986891933,0.833,632.11,631.08,1.49785294]
[1742986891934,0.833,632.11,631.38,1.18093591]
[1742986892135,0.27549736,632.1,631.38,1.18093591]
[1742986894440,0.439,632.09,631.38,1.18093591]
[1742986895235,0.439,632.09,631.18,1.18093591]
[1742986896643,0.439,632.09,631.16,1.18093591]
[1742986898247,0.275493,632.08,631.16,1.18093591]
[1742986898853,0.275493,632.08,631.17,0.26355793]
[1742986899248,0.275493,632.08,631.12,0.26355793]
[1742986899850,1.333493,632.08,631.12,0.26355793]
[1742986900648,1.058,632.08,631.12,0.26355793]
[1742986901251,0.27550172,632.07,631.29,1.18093591]
[1742986904259,0.85950172,632.07,631.28,1.18093591]
[1742986906558,0.584,632.07,631.28,1.18093591]
[1742986906957,0.584,632.07,631.16,1.18093591]
[1742986907157,0.27547555,632.06,631.16,1.18093591]
[1742986907354,0.27547555,632.06,631.17,0.26350225]
[1742986908860,0.27547555,632.06,631.16,1.18093591]
[1742986909164,0.27547555,632.06,631.17,0.26347814]
[1742986909561,0.584,632.07,631.26,1.18093591]
[1742986910063,0.27548209,632.06,631.26,1.18093591]
[1742986911662,0.27548209,632.06,631.23,1.18093591]
[1742986912762,0.584,632.07,631.23,1.18093591]
[1742986913160,0.27549191,632.05,631.23,1.18093591]
[1742986913360,0.27549191,632.05,631.26,1.18093591]
[1742986914260,0.439,632.04,631.26,1.18093591]
[1742986915459,0.439,632.04,631.27,1.18093591]
[1742986916065,0.275481,632.03,631.27,1.18093591]
[1742986917265,0.275481,632.03,631.3,1.18093591]
[1742986918668,0.439,632.04,631.3,1.18093591]
[1742986919165,0.27548427,632.03,631.3,1.18093591]
[1742986919967,0.27548427,632.03,631.37,1.18093591]
[1742986921467,0.585,632.02,631.37,1.18093591]
[1742986921967,0.585,632.02,631.4,1.18093591]
[1742986922167,0.27547555,632.01,631.4,1.18093591]
[1742986924368,0.2681971,632.01,631.4,1.18093591]
[1742986924865,0.585,632.02,631.4,1.18093591]
[1742986925166,0.27547228,632.0,631.4,1.18093591]
[1742986925772,0.748,631.99,631.4,1.18093591]
[1742986927765,0.748,631.99,631.38,1.18093591]
[1742986930275,0.748,631.99,631.18,1.18093591]
[1742986932473,0.748,631.99,631.2,1.18093591]
[1742986932874,0.748,631.99,631.21,0.26301922]
[1742986935073,0.748,631.99,631.22,0.2630105]
[1742986935277,0.748,631.99,631.21,0.2630105]
[1742986935474,0.748,631.99,631.36,1.18093591]
[1742986936979,1.02346901,631.99,631.36,1.18093591]
[1742986937476,1.02346901,631.99,631.35,1.18093591]
[1742986938177,0.585,631.98,631.35,1.18093591]
[1742986938377,1.024,631.98,631.35,1.18093591]
[1742986940283,1.024,631.98,631.36,1.18093591]
[1742986941778,1.024,631.98,631.3,1.18093591]
[1742986943384,1.024,631.98,631.38,1.18093591]
[1742986945882,1.024,631.98,631.39,1.18093591]
[1742986946081,0.275481,631.97,631.39,1.18093591]
[1742986947885,0.275481,631.97,631.36,1.18093591]
[1742986948684,1.024,631.98,631.36,1.18093591]
[1742986948988,0.27548536,631.96,631.36,1.18093591]
[1742986949388,0.692,631.95,631.36,1.18093591]
[1742986949993,0.692,631.95,631.09,1.00601622]
[1742986949994,0.692,631.95,631.42,1.18093591]
[1742986952291,0.27548209,631.94,631.42,1.18093591]
[1742986952488,0.27548209,631.94,631.09,1.00601622]
[1742986952489,0.27548209,631.94,631.36,1.18093591]
[1742986954593,0.692,631.95,631.36,1.18093591]
[1742986954894,0.27548864,631.93,631.36,1.18093591]
[1742986956191,0.426,631.92,631.36,1.18093591]
[1742986956891,0.426,631.92,631.37,1.18093591]
[1742986958997,0.70148755,631.92,631.37,1.18093591]
[1742986960591,0.426,631.92,631.37,1.18093591]
[1742986960898,0.426,631.92,631.22,1.18093591]
[1742986961893,0.7015039,631.92,631.22,1.18093591]
[1742986963199,0.7015039,631.92,631.23,1.18093591]
[1742986963795,0.426,631.92,631.23,1.18093591]
[1742986964895,0.70150281,631.92,631.23,1.18093591]
[1742986965905,0.70150281,631.92,631.08,0.31691703]
[1742986965906,0.70150281,631.92,631.25,1.18093591]
[1742986966803,0.426,631.92,631.25,1.18093591]
[1742986968105,0.70150063,631.92,631.26,0.26316823]
[1742986968307,0.70150063,631.92,631.33,1.18093591]
[1742986969706,0.426,631.92,631.33,1.18093591]
[1742986969903,0.426,631.92,631.4,1.18093591]
[1742986970910,0.2755039,631.91,631.4,1.18093591]
[1742986972310,0.2755039,631.91,631.29,1.18093591]
[1742986972709,0.426,631.92,631.29,1.18093591]
[1742986973810,0.27552681,631.91,631.29,1.18093591]
[1742986974811,0.27552681,631.91,631.1,1.18093591]
[1742986975612,0.426,631.92,631.1,1.18093591]
[1742986976009,0.2755508,631.9,631.1,1.18093591]
[1742986978717,0.426,631.92,631.1,1.18093591]
[1742986979316,1.044,631.91,631.1,1.18093591]
[1742986979816,1.044,631.91,631.08,0.31691703]
[1742986979817,1.044,631.91,631.17,1.18093591]
[1742986980019,0.2755519,631.9,631.17,1.18093591]
[1742986981619,1.044,631.91,631.17,1.18093591]
[1742986982318,1.044,631.91,631.15,1.18093591]
[1742986982922,0.27554644,631.9,631.15,1.18093591]
[1742986984623,1.044,631.91,631.15,1.18093591]
[1742986984825,1.044,631.91,631.09,1.18093591]
[1742986985823,0.427,631.9,631.09,1.18093591]
[1742986986023,0.70255299,631.9,631.09,1.18093591]
[1742986987022,0.70255299,631.9,631.08,0.31691703]
[1742986987023,0.70255299,631.9,631.11,1.18093591]
[1742986987627,0.427,631.9,631.11,1.18093591]
[1742986988930,0.2755508,631.89,631.11,1.18093591]
[1742986990130,0.2755508,631.89,631.12,1.18093591]
[1742986990724,0.427,631.9,631.12,1.18093591]
[1742986991828,0.427,631.9,631.13,0.26330585]
[1742986992029,0.2755519,631.89,631.13,0.26330585]
[1742986993632,0.427,631.9,631.13,0.26330585]
[1742986993832,0.427,631.9,631.14,0.26331842]
[1742986994030,0.427,631.9,631.13,0.26331842]
[1742986994226,0.427,631.9,631.14,0.26331842]
[1742986994527,0.427,631.9,631.12,1.18093591]
[1742986994729,0.427,631.9,631.08,0.31691703]
[1742986994730,0.427,631.9,631.24,1.18093591]
[1742986994930,0.27555408,631.89,631.24,1.18093591]
[1742986996629,0.427,631.9,631.24,1.18093591]
[1742986997733,0.427,631.9,631.16,1.18093591]
[1742986998032,0.27554099,631.89,631.16,1.18093591]
[1742986999636,0.427,631.9,631.16,1.18093591]
[1742987000028,0.2755508,631.88,631.19,1.18093591]
[1742987001737,0.668,631.87,631.19,1.18093591]
[1742987002437,0.668,631.87,631.21,1.18093591]
[1742987003939,0.27554862,631.86,631.21,1.18093591]
[1742987005734,0.668,631.87,631.08,0.31691703]
[1742987005735,0.668,631.87,631.22,1.18093591]
[1742987006931,0.27554971,631.86,631.22,1.18093591]
[1742987008343,0.27554971,631.86,631.28,1.18093591]
[1742987011243,0.27554971,631.86,631.29,1.18093591]
[1742987011745,0.668,631.87,631.29,1.18093591]
[1742987012945,0.27554208,631.86,631.29,1.18093591]
[1742987013538,0.27554208,631.86,631.08,1.49785294]
[1742987013539,0.27554208,631.86,631.31,1.18093591]
[1742987014240,0.427,631.85,631.31,1.18093591]
[1742987015347,0.737,631.84,631.35,1.18093591]
[1742987018946,0.27554099,631.83,631.35,1.18093591]
[1742987019151,0.27554099,631.83,631.38,1.18093591]
[1742987020750,0.737,631.84,631.38,1.18093591]
[1742987021150,0.737,631.84,631.28,1.18093591]
[1742987022057,0.27554862,631.83,631.28,1.18093591]
[1742987023750,0.737,631.84,631.28,1.18093591]
[1742987024954,0.27554862,631.83,631.28,1.18093591]
[1742987026657,0.737,631.84,631.28,1.18093591]
[1742987027061,0.737,631.84,631.27,1.18093591]
[1742987028063,0.27554971,631.83,631.27,1.18093591]
[1742987029763,0.427,631.85,631.27,1.18093591]
[1742987030963,0.27550063,631.84,631.27,1.18093591]
[1742987032167,0.981,631.83,631.36,1.18093591]
[1742987034767,0.981,631.83,631.32,1.18093591]
[1742987037073,0.981,631.83,631.08,0.31691703]
[1742987037074,1.25652572,631.83,631.26,1.18093591]
[1742987038566,1.68352572,631.83,631.26,1.18093591]
[1742987039072,1.68352572,631.83,631.29,1.18093591]
[1742987041775,1.408,631.83,631.29,1.18093591]
[1742987042570,1.408,631.83,631.35,1.18093591]
[1742987042969,1.68352899,631.83,631.35,1.18093591]
[1742987044571,1.68352899,631.83,631.36,1.18093591]
[1742987044776,1.408,631.83,631.36,1.18093591]
[1742987046575,1.408,631.83,631.22,1.18093591]
[1742987048581,1.408,631.83,631.21,1.18093591]
[1742987054683,1.408,631.83,631.2,1.18093591]
[1742987055083,1.408,631.83,631.21,0.26311353]
[1742987056885,1.408,631.83,631.33,1.18093591]
[1742987061484,1.408,631.83,631.39,1.18093591]
[1742987063889,1.408,631.83,631.41,1.18093591]
[1742987066492,1.408,631.83,631.45,1.18093591]
[1742987069096,1.408,631.83,631.44,1.18093591]
[1742987071290,1.408,631.83,631.45,1.18093591]
[1742987073297,1.408,631.83,631.42,1.18093591]
[1742987075894,1.408,631.83,631.44,1.18093591]
[1742987078696,1.408,631.83,631.46,1.18093591]
[1742987080901,1.408,631.83,631.47,1.18093591]
[1742987083303,1.408,631.83,631.42,1.18093591]
[1742987088210,1.408,631.83,631.09,1.00556583]
[1742987088211,1.408,631.83,631.41,1.18093591]
[1742987090220,1.408,631.83,631.39,1.18093591]
[1742987092022,1.408,631.83,631.33,1.18093591]
[1742987094316,1.408,631.83,631.35,1.18093591]
[1742987100523,1.408,631.83,631.34,1.18093591]
[1742987102834,1.408,631.83,631.28,1.18093591]
[1742987103032,1.68352353,631.83,631.28,1.18093591]
[1742987103730,1.408,631.83,631.28,1.18093591]
[1742987104832,1.408,631.83,631.21,1.18093591]
[1742987106426,1.408,631.83,631.22,1.18093591]
[1742987108132,1.408,631.83,631.23,1.18093591]
[1742987110933,1.408,631.83,631.27,1.18093591]
[1742987113135,1.408,631.83,631.29,1.18093591]
[1742987115027,1.408,631.83,631.41,1.18093591]
[1742987117237,1.408,631.83,631.47,1.18093591]
[1742987119337,1.408,631.83,631.48,1.18093591]
[1742987122141,1.408,631.83,631.44,1.18093591]
[1742987126749,1.408,631.83,631.41,1.18093591]
[1742987129251,1.408,631.83,631.43,1.18093591]
[1742987133951,1.408,631.83,631.45,1.18093591]
[1742987138357,1.408,631.83,631.51,1.18093591]
[1742987140055,1.408,631.83,631.38,1.18093591]
[1742987141658,1.408,631.83,631.35,1.18093591]
[1742987143257,1.408,631.83,631.34,1.18093591]
[1742987145660,1.408,631.83,631.36,1.18093591]
[1742987147458,1.408,631.83,631.37,0.26297118]
[1742987147857,1.408,631.83,631.36,1.18093591]
[1742987148056,1.408,631.83,631.37,0.26296085]
[1742987148262,1.408,631.83,631.47,1.18093591]
[1742987150263,1.408,631.83,631.26,1.18093591]
[1742987150264,1.408,631.83,631.5,1.18093591]
[1742987152670,1.408,631.83,631.41,1.18093591]
[1742987154980,1.408,631.83,631.39,1.18093591]
[1742987157573,1.408,631.83,631.4,1.18093591]
[1742987160179,1.408,631.83,631.41,1.18093591]
[1742987163281,1.408,631.83,623.78,9.44489654]
[1742987163282,1.408,631.83,631.46,1.18093591]
[1742987166278,1.408,631.83,631.47,1.18093591]
[1742987168185,1.408,631.83,631.49,1.18093591]
[1742987168384,1.408,631.83,631.5,0.26283894]
[1742987169782,1.408,631.83,631.49,1.18093591]
[1742987169986,1.408,631.83,631.5,0.26285195]
[1742987171480,1.408,631.83,631.58,1.18093591]
[1742987173782,1.408,631.83,631.61,1.18093591]
[1742987176580,1.408,631.83,631.62,1.18093591]
[1742987179190,1.408,631.83,631.63,1.18093591]
[1742987181185,1.408,631.83,631.64,1.18093591]
[1742987183584,1.408,631.83,631.66,1.18093591]
[1742987185393,1.408,631.83,631.63,1.18093591]
[1742987190496,1.408,631.83,631.35,1.17964333]
[1742987190497,1.408,631.83,631.62,1.18093591]
[1742987192694,1.408,631.83,631.57,1.18093591]
[1742987195192,1.408,631.83,631.19,1.00527478]
[1742987195193,1.408,631.83,631.59,1.18093591]
[1742987198298,1.408,631.83,631.63,1.18093591]
[1742987199999,1.408,631.83,631.64,1.18093591]
[1742987202911,1.408,631.83,631.63,1.18093591]
[1742987204510,1.408,631.83,631.18,1.00527478]
[1742987204511,1.408,631.83,631.6,1.18093591]
[1742987207407,1.408,631.83,631.59,1.18093591]
[1742987211514,1.408,631.83,631.35,1.18093591]
[1742987211515,1.408,631.83,631.64,1.18093591]
[1742987213822,1.408,631.83,631.61,1.18093591]
[1742987215517,1.408,631.83,631.62,1.18093591]
[1742987217524,1.408,631.83,631.61,1.18093591]
[1742987220219,1.408,631.83,631.58,1.18093591]
[1742987222422,1.408,631.83,631.61,1.18093591]
[1742987224824,1.408,631.83,631.6,1.18093591]
[1742987226623,1.408,631.83,631.62,1.18093591]
[1742987228927,1.408,631.83,631.29,1.18093591]
[1742987232032,1.408,631.83,631.36,1.18093591]
[1742987235036,1.408,631.83,631.25,0.27544503]
[1742987235037,1.408,631.83,631.56,1.18093591]
[1742987237334,1.408,631.83,631.57,1.18093591]
[1742987239542,1.408,631.83,631.6,1.18093591]
[1742987241749,1.408,631.83,631.63,1.18093591]
[1742987243652,1.408,631.83,631.62,1.18093591]
[1742987245451,1.408,631.83,631.63,1.18093591]
[1742987249754,1.408,631.83,631.7,1.18093591]
[1742987250249,0.27540688,632.25,631.7,1.18093591]
[1742987251854,2.41337974,633.4,631.71,1.18093591]
[1742987252051,0.3157662,633.38,631.71,1.18093591]
[1742987252354,0.29065081,633.37,631.71,1.18093591]
[1742987252555,0.31578116,633.35,631.71,1.18093591]
[1742987252746,0.29065067,633.34,631.71,1.18093591]
[1742987252948,0.31579612,633.32,631.71,1.18093591]
[1742987253149,0.29065067,633.31,631.71,1.18093591]
[1742987253360,0.31581108,633.29,631.71,1.18093591]
[1742987253554,0.29065067,633.28,631.71,1.18093591]
[1742987253854,0.29065067,633.27,631.71,1.18093591]
[1742987254056,0.29065067,633.26,631.71,1.18093591]
[1742987254258,0.29065067,633.25,631.71,1.18093591]
[1742987254558,0.60648668,633.24,631.74,1.18093591]
[1742987254750,0.31584599,633.22,631.74,1.18093591]
[1742987254950,0.29065067,633.21,631.74,1.18093591]
[1742987255256,0.31586095,633.19,631.74,1.18093591]
[1742987255458,0.29065067,633.18,631.74,1.18093591]
[1742987255657,0.31587592,633.16,631.74,1.18093591]
[1742987255859,0.29065268,633.15,631.74,1.18093591]
[1742987256058,0.31589089,633.13,631.74,1.18093591]
[1742987256262,0.31589089,633.13,631.52,1.18093591]
[1742987256263,0.29065268,633.12,631.68,1.18093591]
[1742987256762,0.31590586,633.1,631.68,1.18093591]
[1742987256959,0.29065268,633.09,631.68,1.18093591]
[1742987257160,0.31592083,633.07,631.68,1.18093591]
[1742987258861,0.31592083,633.07,631.77,1.18093591]
[1742987259257,0.29049443,633.06,631.77,1.18093591]
[1742987259460,0.31593081,633.05,631.77,1.18093591]
[1742987259862,0.29049618,633.04,631.77,1.18093591]
[1742987260164,0.31594079,633.03,631.78,0.26189208]
[1742987260361,0.31594079,633.03,631.77,1.18093591]
[1742987260562,0.29048161,633.02,631.78,0.26190387]
[1742987260762,0.31595077,633.01,631.78,0.26190387]
[1742987261162,0.31595077,633.01,631.72,0.26190387]
[1742987261362,0.31595077,633.01,631.73,0.26190387]
[1742987261561,0.31595077,633.01,631.72,0.26190387]
[1742987261763,0.31595077,633.01,631.73,0.26190387]
[1742987262063,0.31595077,633.01,631.71,1.18093591]
[1742987262558,0.31595077,633.01,631.72,0.26187553]
[1742987263461,0.31595077,633.01,631.73,1.18093591]
[1742987264064,0.27517713,633.0,631.73,1.18093591]
[1742987264266,0.31596075,632.99,631.73,1.18093591]
[1742987266570,0.31596075,632.99,631.57,1.18093591]
[1742987266768,0.31596075,632.99,631.58,0.31666613]
[1742987266968,0.31596075,632.99,631.59,0.26197143]
[1742987267168,0.27523807,632.98,631.59,0.26197143]
[1742987267364,0.31597074,632.97,631.59,0.26197143]
[1742987267564,0.31597074,632.97,631.58,0.31666613]
[1742987267868,0.31597074,632.97,631.59,0.26198395]
[1742987269065,0.2905133,632.96,631.59,0.26198395]
[1742987269262,0.31597074,632.97,631.58,0.31666613]
[1742987269867,0.428,632.96,631.58,0.31666613]
[1742987270263,0.70325113,632.96,631.58,0.31666613]
[1742987270966,0.31598072,632.95,631.58,0.31666613]
[1742987271766,1.20198072,632.95,631.58,0.31666613]
[1742987273170,1.20198072,632.95,631.59,0.26198106]
[1742987274071,0.2752446,632.94,631.59,0.26198106]
[1742987274266,0.3159907,632.93,631.59,0.26198106]
[1742987276574,0.29051478,632.92,631.6,0.26199727]
[1742987276873,0.31600069,632.91,631.61,0.26199727]
[1742987277074,0.31600069,632.91,631.62,0.26199727]
[1742987277274,0.31600069,632.91,631.59,0.26199727]
[1742987278074,0.31600069,632.91,631.58,0.31666613]
[1742987278276,0.31600069,632.91,631.59,0.26199557]
[1742987280176,0.2752446,632.9,631.59,0.26199557]
[1742987280378,0.31601068,632.89,631.59,0.26199557]
[1742987280580,0.29051215,632.88,631.59,0.26199557]
[1742987280774,0.31602066,632.87,631.59,0.26199557]
[1742987280977,0.29051215,632.86,631.59,0.26199557]
[1742987281177,0.31603065,632.85,631.59,0.26199557]
[1742987281578,0.29051215,632.84,631.73,1.18093591]
[1742987281781,0.31604064,632.83,631.74,0.26199557]
[1742987282079,0.29051215,632.82,631.74,0.26199557]
[1742987282373,0.31605063,632.81,631.74,0.26199557]
[1742987282778,0.31605063,632.81,631.74,1.44293148]
[1742987282973,0.31605063,632.81,631.75,0.26199557]
[1742987283180,0.27522827,632.8,631.75,0.26199557]
[1742987283380,0.59128389,632.8,631.75,0.26199557]
[1742987284479,0.59128389,632.8,631.76,0.26199557]
[1742987284681,0.59128389,632.8,631.72,0.26199557]
[1742987284879,0.31605562,632.8,631.73,0.26199557]
[1742987285082,0.31605562,632.8,631.72,0.26199557]
[1742987285284,0.31605562,632.8,631.73,0.26199557]
[1742987285485,0.31605562,632.8,631.72,0.26199557]
[1742987285685,0.31605562,632.8,631.73,0.26199557]
[1742987285885,0.31605562,632.8,631.72,0.26199557]
[1742987286085,0.27522936,632.79,631.72,0.26199557]
[1742987286484,0.27522936,632.79,631.72,1.44293148]
[1742987286684,0.27522936,632.79,631.73,0.26199557]
[1742987287485,0.714,632.78,631.73,0.26199557]
[1742987287681,0.31607061,632.77,631.72,1.18093591]
[1742987288688,0.31607061,632.77,631.71,1.18093591]
[1742987289188,0.27526963,632.76,631.71,1.18093591]
[1742987289388,0.3160806,632.75,631.71,1.18093591]
[1742987289891,0.428,632.74,631.71,1.18093591]
[1742987290088,0.31609059,632.73,631.71,1.18093591]
[1742987291187,0.31609059,632.73,631.58,0.31666613]
[1742987292082,0.27531319,632.72,631.58,0.31666613]
[1742987292286,0.31610058,632.71,631.58,0.31666613]
[1742987294080,0.27532408,632.7,631.58,0.31666613]
[1742987294882,0.31611057,632.69,631.58,0.31666613]
[1742987297292,0.27533497,632.68,631.58,0.31666613]
[1742987297592,0.31612056,632.67,631.58,0.31666613]
[1742987300699,0.2753317,632.66,631.58,0.31666613]
[1742987300900,0.31613056,632.65,631.58,0.31666613]
[1742987303299,0.27533606,632.64,631.58,0.31666613]
[1742987303500,0.31614055,632.63,631.58,0.31666613]
[1742987304805,0.29061666,632.62,631.59,0.26228155]
[1742987305305,0.31615055,632.61,631.58,0.31666613]
[1742987305502,0.31615055,632.61,631.59,0.26228213]
[1742987306307,0.2753219,632.6,631.59,0.26228213]
[1742987306507,0.59147744,632.6,631.59,0.26228213]
[1742987307506,0.29061483,632.59,631.59,0.26228213]
[1742987309411,0.29061483,632.59,631.6,1.18093591]
[1742987309709,0.29061483,632.59,631.61,0.26228213]
[1742987310110,0.27532408,632.58,631.6,1.18093591]
[1742987311106,1.19132408,632.58,631.6,1.18093591]
[1742987311510,1.19132408,632.58,631.58,0.31666613]
[1742987311708,1.19132408,632.58,631.59,0.26228939]
[1742987311906,0.916,632.58,631.59,0.26228939]
[1742987312209,0.916,632.58,631.58,0.31666613]
[1742987313214,0.27533279,632.57,631.58,0.31666613]
[1742987313814,0.27533279,632.57,631.59,0.26228393]
[1742987314413,0.27533279,632.57,631.58,0.31666613]
[1742987315014,0.916,632.58,631.58,0.31666613]
[1742987316216,0.2753317,632.57,631.58,0.31666613]
[1742987317814,0.916,632.58,631.58,0.31666613]
[1742987318111,0.27532953,632.56,631.58,1.49760204]
[1742987319613,0.27532953,632.56,631.59,1.18093591]
[1742987320415,0.27532953,632.56,631.6,0.26228649]
[1742987320818,0.428,632.55,631.6,0.26228649]
[1742987321019,0.428,632.55,631.59,1.18093591]
[1742987321518,0.428,632.55,631.6,0.2622888]
[1742987322220,0.27532735,632.54,631.69,1.18093591]
[1742987324020,0.428,632.55,631.69,1.18093591]
[1742987324822,0.428,632.55,631.79,1.18093591]
[1742987325222,0.27531646,632.54,631.79,1.18093591]
[1742987326924,0.428,632.55,631.68,1.18093591]
[1742987327123,0.27530883,632.53,631.68,1.18093591]
[1742987329624,0.27530883,632.53,631.67,1.18093591]
[1742987330019,0.428,632.55,631.67,1.18093591]
[1742987331224,0.27532081,632.54,631.67,1.18093591]
[1742987331919,0.27532081,632.54,631.6,1.18093591]
[1742987332924,0.428,632.55,631.6,1.18093591]
[1742987334123,0.27532844,632.54,631.6,1.18093591]
[1742987334725,0.27532844,632.54,631.61,1.18093591]
[1742987336024,0.428,632.55,631.61,1.18093591]
[1742987337221,0.27532517,632.54,631.61,1.18093591]
[1742987337429,0.27532517,632.54,631.67,1.18093591]
[1742987339029,0.31615554,632.6,631.67,1.18093591]
[1742987339224,0.728,632.53,631.67,1.18093591]
[1742987339829,0.728,632.53,631.58,0.31666613]
[1742987339830,0.27532626,632.52,631.68,1.18093591]
[1742987340222,0.428,632.51,631.68,1.18093591]
[1742987342027,0.428,632.51,631.58,0.31666613]
[1742987342028,0.428,632.51,631.78,1.18093591]
[1742987344329,0.428,632.51,631.8,1.18093591]
[1742987345328,0.27529576,632.5,631.8,1.18093591]
[1742987347134,0.27529576,632.5,631.79,1.18093591]
[1742987351040,0.27529576,632.5,631.85,1.18093591]
[1742987352840,0.27529576,632.5,631.78,1.18093591]
[1742987354042,0.728,632.53,631.78,1.18093591]
[1742987354440,0.728,632.53,631.77,1.18093591]
[1742987355142,0.27529794,632.52,631.77,1.18093591]
[1742987356640,0.27529794,632.52,631.75,1.18093591]
[1742987357041,0.728,632.53,631.75,1.18093591]
[1742987357444,0.429,632.52,631.75,1.18093591]
[1742987358345,0.27530012,632.51,631.75,1.18093591]
[1742987359644,0.27530012,632.51,631.77,1.18093591]
[1742987359843,0.429,632.52,631.77,1.18093591]
[1742987361247,0.27529032,632.51,631.77,1.18093591]
[1742987361848,0.27529032,632.51,631.58,0.31666613]
[1742987361849,0.27529032,632.51,631.75,1.18093591]
[1742987363047,0.759,632.5,631.75,1.18093591]
[1742987364150,0.27530339,632.49,631.75,1.18093591]
[1742987365955,0.759,632.5,631.75,1.18093591]
[1742987366259,0.27530339,632.48,631.75,1.18093591]
[1742987366558,0.27530339,632.48,631.76,1.18093591]
[1742987368759,0.27530339,632.48,631.74,1.18093591]
[1742987370354,0.27530339,632.48,631.78,1.18093591]
[1742987372060,0.759,632.5,631.78,1.18093591]
[1742987372655,0.759,632.5,631.81,1.18093591]
[1742987373256,0.27526201,632.49,631.81,1.18093591]
[1742987374061,0.759,632.5,631.81,1.18093591]
[1742987374461,0.759,632.5,631.88,1.18093591]
[1742987376367,0.759,632.5,631.85,1.18093591]
[1742987376959,0.2752348,632.58,631.85,1.18093591]
[1742987377961,0.31615554,632.6,631.85,1.18093591]
[1742987378864,0.31615554,632.6,631.81,1.18093591]
[1742987379263,0.27507489,632.59,631.81,1.18093591]
[1742987379864,0.922,632.58,631.81,1.18093591]
[1742987380158,1.351,632.58,631.81,1.18093591]
[1742987381067,1.351,632.58,631.79,1.18093591]
[1742987381268,1.351,632.58,631.8,0.26193732]
[1742987381468,1.351,632.58,631.79,1.18093591]
[1742987382262,1.62623589,632.58,631.79,1.18093591]
[1742987382769,1.62623589,632.58,631.8,0.26193543]
[1742987382969,1.62623589,632.58,631.79,1.18093591]
[1742987383169,1.62623589,632.58,631.8,0.26193817]
[1742987383370,1.62623589,632.58,631.74,1.18093591]
[1742987383571,1.62623589,632.58,631.75,0.26193616]
[1742987383969,1.351,632.58,631.75,0.26193616]
[1742987384770,1.351,632.58,631.75,1.44287207]
[1742987385070,1.351,632.58,631.76,0.26193616]
[1742987385269,1.62624133,632.58,631.76,0.26193616]
[1742987386671,1.62624133,632.58,631.75,1.18093591]
[1742987386866,1.351,632.58,631.75,1.18093591]
[1742987387469,1.351,632.58,631.8,1.18093591]
[1742987390874,1.351,632.58,631.66,0.27522392]
[1742987391065,1.351,632.58,631.67,0.31662102]
[1742987393275,0.27526963,632.57,631.67,0.31662102]
[1742987394674,0.27526963,632.57,631.68,0.26194549]
[1742987395977,1.351,632.58,631.67,0.31662102]
[1742987396373,0.27526419,632.56,631.68,0.26194891]
[1742987396777,0.27526419,632.56,631.67,0.31662102]
[1742987397681,0.27526419,632.56,631.68,0.26196441]
[1742987397881,0.27526419,632.56,631.69,0.26196505]
[1742987398082,0.27526419,632.56,631.68,0.26196505]
[1742987398278,0.27526419,632.56,631.69,0.26196505]
[1742987398478,0.27526419,632.56,631.68,0.26196505]
[1742987398675,0.27526419,632.56,631.69,0.26196505]
[1742987398982,1.351,632.58,631.7,0.26196505]
[1742987399184,0.27526419,632.55,631.68,0.26196505]
[1742987399481,0.27526419,632.55,631.69,0.26196505]
[1742987399781,0.27526419,632.55,631.71,1.18093591]
[1742987399980,0.27526419,632.55,631.72,0.26196505]
[1742987401886,1.351,632.58,631.76,1.18093591]
[1742987403985,1.351,632.58,631.67,0.31662102]
[1742987406484,1.351,632.58,631.73,1.18093591]
[1742987407388,1.351,632.58,631.74,0.26178224]
[1742987408989,1.351,632.58,631.78,1.18093591]
[1742987409189,1.351,632.58,631.79,0.26178224]
[1742987411092,1.351,632.58,632.11,1.18093591]
[1742987413292,1.351,632.58,632.04,1.18093591]
[1742987415894,1.351,632.58,632.03,1.18093591]
[1742987417994,1.351,632.58,632.02,1.18093591]
[1742987420294,1.351,632.58,631.67,0.31662102]